{"text_format":"1","workbook":"xlsx","n_sheets":6,"sheets":["Hinweis","Persönliche Angaben","Einkünfte & Ausgaben","Vermögensaufstellung","Verbindlichkeiten","Sonstiges"],"not_rendered":{"charts":0,"images":1,"macros":1,"external_links":0,"defined_names":6,"comments":0,"pivot_tables":0},"unopened":[],"bounds":{"document_bytes":16777216,"sheet_cells":100000,"rows_first":2000,"rows_last":500,"rows_between":2000,"halvings":0,"cell_chars":16384,"cell_head_chars":4096},"cells_cut":0,"cells_raw":0,"read":"whole","date_system":"1900"}

{"sheet":"Hinweis","index":0,"n_rows":18,"n_cols":3,"rows_kept":18,"cut":false,"hidden":false,"merged":[[1,0,2,2],[31,0,31,1],[11,2,12,5],[11,0,12,1],[5,0,6,1],[5,2,6,5],[17,2,18,5],[14,0,15,1],[14,2,15,5],[8,0,9,1],[8,2,9,5]]}
[]
["Hinweis"]
[]
[]
[]
["Ehe / Eheähnliche Gemeinschaft",null,"Sollten Sie verheiratet sein, oder in einer eheähnlichen Gemeinschaft leben, müssen Sie ebenfalls Angaben für ihren Partner vornehmen."]
[]
[]
["Nullbeträge",null,"Geben Sie im Reiter \"Einkünfte & Ausgaben\" ggf. auch 0€ als Wert ein"]
[]
[]
["Hellblaue Felder",null,"Die hellblau markierten Felder können Sie nur per Doppelklick ausfüllen."]
[]
[]
["Dunkelblaue Felder",null,"In den dunkelblauen Feldern finden Sie die Summe.\nDiese berechnet sich automatisch."]
[]
[]
[null,null,"An einigen Stellen können Sie über die Knöpfe auf der rechten Seite Positionen hinzufügen oder entfernen."]

{"sheet":"Persönliche Angaben","index":1,"n_rows":23,"n_cols":14,"rows_kept":23,"cut":false,"hidden":false,"merged":[[21,0,21,1],[21,2,21,3],[21,4,21,5],[20,2,20,3],[20,4,20,5],[16,4,16,5],[13,0,13,1],[13,2,13,3],[13,4,13,5],[19,0,19,5],[16,2,16,3],[12,4,12,5],[9,4,9,5],[10,2,10,3],[10,4,10,5],[1,0,2,2],[7,0,7,1],[8,0,8,1],[9,0,9,1],[10,0,10,1],[9,2,9,3],[4,2,6,3],[4,4,6,5],[7,2,7,3],[7,4,7,5],[8,2,8,3],[8,4,8,5],[22,0,22,1],[11,2,11,3],[11,4,11,5],[20,0,20,1],[11,0,11,1],[17,0,17,1],[15,0,15,1],[16,0,16,1],[15,2,15,5],[12,0,12,1],[14,0,14,1],[17,2,17,3],[17,4,17,5],[14,2,14,3],[14,4,14,5],[12,2,12,3]]}
[]
["1. Persönliche Angaben"]
[]
[null,null,null,null,null,null,null,null,null,null,null,null,{"$f":"IF(C16=\"Bitte Auswählen\",\"Nichts gewählt\",IF(OR($C$16=\"Geschieden\",$C$16=\"Ledig\",$C$16=\"Verwitwet\"),\"Alleine\",\"Partner\"))","v":"Partner"},{"$f":"IF(SUM(M8:M77)=0,\"Alles IO\",\"Nichtvollständig\")","v":"Nichtvollständig"}]
[null,null,"Bürge",null,{"$f":"IF(C16=\"Verheiratet\",\"Ehepartner*in\",IF(C16=\"Eheähnliche Gemeinschaft\",\"Eingetragene/r\nLebenspartner/in\",\"\"))","v":"Ehepartner*in"}]
[]
[]
["Name:",null,null,null,null,null,null,null,null,null,null,null,{"$f":"IF($M$4=\"Alleine\",COUNTBLANK(C8),COUNTBLANK(C8)+COUNTBLANK(E8))","v":2}]
["Vorname:",null,null,null,null,null,null,null,null,null,null,null,{"$f":"IF($M$4=\"Alleine\",COUNTBLANK(C9),COUNTBLANK(C9)+COUNTBLANK(E9))","v":2}]
["Geburtsname:",null,null,null,null,null,null,null,null,null,null,null,2]
["Geburtsdatum:",null,null,null,null,null,null,null,null,null,null,null,2]
["Straße und Hausnummer:",null,null,null,null,null,null,null,null,null,null,null,2]
["PLZ, Wohnort:",null,null,null,null,null,null,null,null,null,null,null,2]
["Bankverbindung (IBAN):",null,null,null,null,null,null,null,null,null,null,null,2]
["Beruf:",null,null,null,null,null,null,null,null,null,null,null,2]
["Familienstand",null,"Verheiratet"]
["Güterstand",null,null,null,null,null,null,null,null,null,null,null,{"$f":"IF(OR(C16=\"Verheiratet\",C16=\"Eheähnliche Gemeinschaft\"),IF($M$4=\"Alleine\",COUNTBLANK(C17),COUNTBLANK(C17)+COUNTBLANK(E17)))","v":2}]
["Anzahl Kfz (privat):",null,null,null,null,null,null,null,null,null,null,null,2]
[]
["Name und Geburtsdatum der im Haushalt lebenden Kinder und anderer unterhaltsberechtigter Personen:"]
[null,null,"Name",null,"Geburtsdatum"]
[]
["Hilfsspalte"]

{"sheet":"Einkünfte & Ausgaben","index":2,"n_rows":43,"n_cols":14,"rows_kept":43,"cut":false,"hidden":false,"merged":[[2,0,3,2],[5,2,7,3],[5,4,7,5],[8,0,8,1],[8,2,8,3],[8,4,8,5],[9,0,9,1],[9,2,9,3],[9,4,9,5],[10,0,10,1],[10,2,10,3],[10,4,10,5],[12,0,12,1],[12,2,12,3],[12,4,12,5],[13,0,13,1],[13,2,13,3],[13,4,13,5],[14,0,14,1],[14,2,14,3],[14,4,14,5],[15,0,15,1],[15,2,15,3],[15,4,15,5],[28,0,28,1],[28,2,28,3],[28,4,28,5],[18,0,19,2],[20,0,20,3],[25,2,27,3],[25,4,27,5],[22,0,23,2],[35,4,35,5],[29,2,29,3],[29,4,29,5],[30,2,30,3],[30,4,30,5],[31,2,31,3],[31,4,31,5],[23,6,23,8],[34,0,34,4],[37,0,37,1],[38,0,38,1],[40,0,40,1],[37,2,37,3],[39,0,39,4],[37,4,37,5],[38,2,38,3],[38,4,38,5],[40,2,40,3],[40,4,40,5],[29,0,29,1],[30,0,30,1],[31,0,31,1],[32,0,32,1],[11,0,11,4],[16,0,16,1],[16,2,16,3],[16,4,16,5],[42,0,42,1],[42,2,42,3],[42,4,42,5],[36,0,36,4],[41,0,41,4],[33,0,33,1],[35,0,35,1],[32,2,32,3],[32,4,32,5],[33,2,33,3],[33,4,33,5],[35,2,35,3]]}
[]
[]
["2. Einkünfte (in €)"]
[null,null,null,null,null,null,null,null,null,null,null,null,{"$f":"IF('Persönliche Angaben'!$C$16=\"Bitte Auswählen\",\"Nichts gewählt\",IF(OR('Persönliche Angaben'!$C$16=\"Geschieden\",'Persönliche Angaben'!$C$16=\"Ledig\",'Persönliche Angaben'!$C$16=\"Verwitwet\"),\"Alleine\",\"Partner\"))","v":"Partner"},{"$f":"IF(SUM(M8:M77)=0,\"Alles IO\",\"Nichtvollständig\")","v":"Nichtvollständig"}]
[null,null,null,null,null,null,null,null,null,null,null,null,null,{"$f":"IF(COUNTIF(M9:M42,\"NichtGeklickt\")=0,\"Alles IO\",\"Nichtvollständig\")","v":"Nichtvollständig"}]
[null,null,{"$f":"'Persönliche Angaben'!C5","v":"Bürge"},null,{"$f":"'Persönliche Angaben'!E5","v":"Ehepartner*in"},null,null,null,null,null,null,null,null,{"$f":"IF(COUNTIF(N4:N5,\"Alles IO\")=2,\"Alles IO\",\"Nichtvollständig\")","v":"Nichtvollständig"}]
[]
[]
["Aus Arbeitsverhältnis (monatl. netto):",null,null,null,null,null,null,null,null,null,null,null,{"$f":"IF($M$4=\"Alleine\",COUNTBLANK(C9),COUNTBLANK(C9)+COUNTBLANK(E9))","v":2}]
["Arbeitslosengeld",null,null,null,null,null,null,null,null,null,null,null,{"$f":"IF($M$4=\"Alleine\",COUNTBLANK(C10),COUNTBLANK(C10)+COUNTBLANK(E10))","v":2}]
["Bürgergeld",null,null,null,null,null,null,null,null,null,null,null,2]
["Die letzten drei Gehaltsnachweise bzw. der Leistungsbescheid der Agentur für Arbeit oder des Jobcenters sind beigefügt.",null,null,null,null,null,null,null,null,null,null,null,{"$f":"IF(F12=\"x\",\"Geklickt\",\"NichtGeklickt\")","v":"NichtGeklickt"}]
["Selbständiger \n(Neben-)Tätigkeit:",null,null,null,null,null,null,null,null,null,null,null,2]
["Renten:",null,null,null,null,null,null,null,null,null,null,null,2]
["Vermietung und Verpachtung:",null,null,null,null,null,null,null,null,null,null,null,2]
["Sonstige Einkünfte:",null,null,null,null,null,null,null,null,null,null,null,2]
["Summe:",null,{"$f":"SUM(C9:D11,C13:D16)","v":0},null,{"$f":"SUM(E9:F11,E13:F16)","v":0}]
[]
["3. Ausgaben (in €)"]
[]
["alle Angaben sind für den gesamten Haushalt anzugeben"]
[]
["Ist Wohneigentum vorhanden?",null,null,"Ja","Nein"]
[null,null,null,null,null,null,null,null,null,null,null,null,{"$f":"IF(OR(D24=\"x\",E24=\"x\"),\"Geklickt\",\"NichtGeklickt\")","v":"NichtGeklickt"}]
[]
[null,null,{"$f":"'Persönliche Angaben'!C5","v":"Bürge"},null,{"$f":"'Persönliche Angaben'!E5","v":"Ehepartner*in"}]
[]
[]
["Miete",null,null,null,null,null,"Ausblenden wenn \"Ja\"",null,null,null,null,null,{"$f":"IF($D$24=\"x\",\"0\",IF($M$4=\"Alleine\",COUNTBLANK(C29),COUNTBLANK(C29)+COUNTBLANK(E29)))","v":2}]
["Immobilienkredite",null,null,null,null,null,"Aus geblendet wenn \"Nein\"",null,null,null,null,null,{"$f":"IF($E$24=\"x\",\"0\",IF($M$4=\"Alleine\",COUNTBLANK(C30),COUNTBLANK(C30)+COUNTBLANK(E30)))","v":2}]
["Bewirtschaftung Immobilie",null,null,null,null,null,"Aus geblendet wenn \"Nein\"",null,null,null,null,null,{"$f":"IF($E$24=\"x\",\"0\",IF($M$4=\"Alleine\",COUNTBLANK(C31),COUNTBLANK(C31)+COUNTBLANK(E31)))","v":2}]
["Nebenkosten (oder m² angeben)",null,null,null,null,null,null,null,null,null,null,null,{"$f":"IF($M$4=\"Alleine\",COUNTBLANK(C32),COUNTBLANK(C32)+COUNTBLANK(E32))","v":2}]
["Lebenshaltung",null,null,null,null,null,null,null,null,null,null,null,2]
["Leben-/Rentenversicherungen",null,null,null,null,null,null,null,null,null,null,null,2]
["Bestehen wirklich keine Leben-/Rentenversicherungen? \nBitte Per Doppelklick auf das nebenstehende Feld bestätigen.",null,null,null,null,null,"Einblenden Wenn 0",null,null,null,null,null,{"$f":"IF(SUM($C$34:$F$34)=0,IF(F35=\"x\",\"Geklickt\",\"NichtGeklickt\"))","v":"NichtGeklickt"}]
["Ratenkredite/Leasing",null,null,null,null,null,null,null,null,null,null,null,{"$f":"IF($M$4=\"Alleine\",COUNTBLANK(C36),COUNTBLANK(C36)+COUNTBLANK(E36))","v":2}]
["Nachweise sind beigefügt.\nBitte Per Doppelklick auf das nebenstehende Feld bestätigen.",null,null,null,null,null,"Einblenden Wenn >0",null,null,null,null,null,{"$f":"IF(SUM($C$36:$F$36)>0,IF($F$37=\"x\",\"Geklickt\",\"NichtGeklickt\"))","v":false}]
["Krankversicherung (privat)",null,null,null,null,null,null,null,null,null,null,null,{"$f":"IF($M$4=\"Alleine\",COUNTBLANK(C38),COUNTBLANK(C38)+COUNTBLANK(E38))","v":2}]
["Sonstige Versicherungen",null,null,null,null,null,null,null,null,null,null,null,{"$f":"IF($M$4=\"Alleine\",COUNTBLANK(C39),COUNTBLANK(C39)+COUNTBLANK(E39))","v":2}]
["Bestehen wirklich keine weiteren Versicherungen? \nBitte Per Doppelklick auf das nebenstehende Feld bestätigen.",null,null,null,null,null,"Einblenden Wenn 0",null,null,null,null,null,{"$f":"IF(SUM($C$39:$F$39)=0,IF($F$40=\"x\",\"Geklickt\",\"NichtGeklickt\"))","v":"NichtGeklickt"}]
["sonstiges",null,null,null,null,null,null,null,null,null,null,null,{"$f":"IF($M$4=\"Alleine\",COUNTBLANK(C41),COUNTBLANK(C41)+COUNTBLANK(E41))","v":2}]
["Kontoauszüge der letzten letzten drei Monate sind beigefügt.",null,null,null,null,null,null,null,null,null,null,null,{"$f":"IF(F42=\"x\",\"Geklickt\",\"NichtGeklickt\")","v":"NichtGeklickt"}]
["Summe:",null,{"$f":"SUM(C29:D36,C38,C39,C41)","v":0},null,{"$f":"SUM(E29:F34,E36,E38:F39,E41)","v":0}]

{"sheet":"Vermögensaufstellung","index":3,"n_rows":26,"n_cols":13,"rows_kept":26,"cut":false,"hidden":false,"merged":[[18,0,18,5],[2,0,3,2],[13,0,13,1],[4,0,4,4],[8,0,8,1],[9,0,9,1],[10,0,10,4],[7,2,7,5],[8,2,8,5],[9,2,9,5],[7,0,7,1],[13,2,13,4],[26,0,31,5],[6,0,6,5],[21,0,21,5],[22,0,22,1],[25,0,25,1],[12,0,12,5],[15,0,15,5],[16,2,16,3],[16,4,16,5],[23,0,23,1],[19,0,19,1],[19,2,19,3],[16,0,16,1],[24,0,24,5],[19,4,19,5],[17,0,17,1]]}
[]
[]
["4. Vermögensaufstellung (in €)"]
[]
["(für Antragsteller/innen, Gesellschafter/innen, Bürgen und Ehegattinnen/Ehegatten)"]
[]
["Finanzvermögen"]
[null,null,"Wert in €"]
["Guthaben auf Konten",null,0]
["Wertpapeiere o. Ä.",null,0]
["Nachweise sind beigefügt.",null,null,null,null,null,null,null,null,null,null,null,{"$f":"IF(SUM(C9:F10)=0,\"Null\",IF(F11=\"x\",\"Geklickt\",\"NichtGeklickt\"))","v":"Null"}]
[]
["Immobilien"]
["Objekt",null,"Anschrift",null,null,"Verkaufswert"]
[]
["Betriebsvermögen, Beteiligungen"]
[null,null,"Art",null,"Wert"]
[]
["Lebensversicherungen"]
["Versicherungsgesellschaft",null,"Versicherungssumme",null,"Aktueller Rückkaufswert"]
[]
["Kraftfahrzeuge"]
["Kraftfahrzeug",null,"Typ","Alter","Laufleistung in KM","Geschätzter Verkehrswert"]
[]
["Sonstiges"]
["Sonstiges:"]

{"sheet":"Verbindlichkeiten","index":4,"n_rows":18,"n_cols":14,"rows_kept":18,"cut":false,"hidden":false,"merged":[[2,0,3,2],[6,0,6,1],[18,0,21,5],[17,0,17,1],[13,0,13,5],[5,0,5,5],[11,0,11,2],[11,3,11,5],[10,0,10,5],[7,0,7,1],[8,0,8,4],[15,0,16,3]]}
[]
[]
["5.Verbindlichkeiten"]
[]
[null,null,null,null,null,null,null,null,null,null,null,null,null,{"$f":"IF(COUNTIF(M6:N6,\"NichtGeklickt\")=0,\"Alles IO\",\"Nichtvollständig\")","v":"Nichtvollständig"}]
["Kredite, Darlehen",null,null,null,null,null,null,null,null,null,null,null,{"$f":"IF(COUNTA(A7:B8)<=1,\"Falsch\",IF(F9=\"x\",\"Geklickt\",\"NichtGeklickt\"))","v":"Falsch"},{"$f":"IF(OR(E17=\"x\",F17=\"x\"),\"Geklickt\",\"NichtGeklickt\")","v":"NichtGeklickt"}]
["Gläubiger/in",null,"Betrag","Mtl. Belastung","Laufzeit"]
[]
["Darlehensverträge sowie Kontonachweise der letzten drei Monate sind beigefügt."]
[]
["Unterhaltsverpflichtungen"]
["Empfänger/in",null,null,"monatl. Betrag"]
[]
["Bürgschaftsverpflichtungen"]
[]
["Hat der/die Antragsteller/in Bürgschaften übernommen?",null,null,null,"Ja","Nein"]
[]
["Ggf. Erläuterungen:"]

{"sheet":"Sonstiges","index":5,"n_rows":41,"n_cols":15,"rows_kept":41,"cut":false,"hidden":false,"merged":[[2,0,3,2],[22,0,26,5],[15,4,18,4],[15,5,18,5],[28,0,29,2],[35,1,37,3],[33,1,33,3],[5,0,6,3],[15,0,19,3],[21,0,21,1],[9,0,13,5],[8,0,8,1],[31,0,31,4]]}
[]
[]
["6. Sonstiges"]
[]
[null,null,null,null,null,null,null,null,null,null,null,null,null,{"$f":"IF(COUNTIF(M7:M20,\"NichtGeklickt\")=0,IF(M34=0,\"Alles IO\",\"Nichtvollständig\"))","v":false}]
["Wurde für das Existenzgründungsvorhaben bereits finanzielle Unterstützung bei anderen\nöffentlichen Stellen (Bund, Agentur für Arbeit etc.) beantragt?",null,null,null,"Ja","Nein"]
[null,null,null,null,null,null,null,null,null,null,null,null,{"$f":"IF(OR(E7=\"x\",F7=\"x\"),\"Geklickt\",\"NichtGeklickt\")","v":"NichtGeklickt"}]
[]
["Ggf. Erläuterung:"]
[]
[]
[]
[]
[]
[]
[{"$f":"CONCATENATE(\"Haben der/die \",'Persönliche Angaben'!C5,\" eine\neidesstattliche Versicherung nach § 807 ZPO (früher \"\"Offenbarungseid\"\")\", \"abgegeben\noder wurde gegen sie innerhalb der letzten zehn Jahre ein Insolvenz-, Konkurs- oder Vergleichsverfahren eingeleitet, gab oder gibt es Mahnverfahren, Zahlungsklagen oder Zwangsvollstreckungen?\")","v":"Haben der/die Bürge eine\neidesstattliche Versicherung nach § 807 ZPO (früher \"Offenbarungseid\")abgegeben\noder wurde gegen sie innerhalb der letzten zehn Jahre ein Insolvenz-, Konkurs- oder Vergleichsverfahren eingeleitet, gab oder gibt es Mahnverfahren, Zahlungsklagen oder Zwangsvollstreckungen?"},null,null,null,"Ja","Nein"]
[]
[]
[]
[null,null,null,null,null,null,null,null,null,null,null,null,{"$f":"IF(OR(E20=\"x\",F20=\"x\"),\"Geklickt\",\"NichtGeklickt\")","v":"NichtGeklickt"}]
[]
["Ggf. Erläuterung:"]
[]
[]
[]
[]
[]
[]
["7. Erklärung"]
[]
[]
["Es wird versichert, dass die Angaben richtig und vollständig sind."]
[]
["Ort, Datum:",null,null,null,null,null,null,null,null,null,null,"Pflichtfeld",{"$f":"COUNTBLANK(B34)","v":1}]
[]
["Unterschrift:",null,null,null,null,null,null,null,null,null,null,null,null,{"$f":"'Persönliche Angaben'!N4","v":"Nichtvollständig"},"Persönliche Angaben"]
[null,null,null,null,null,null,null,null,null,null,null,null,null,{"$f":"'Einkünfte & Ausgaben'!N6","v":"Nichtvollständig"},"Einkünfe & Ausgaben"]
[null,null,null,null,null,null,null,null,null,null,null,null,null,{"$f":"IF(Vermögensaufstellung!M11=\"Geklickt\",\"Alles IO\",\"Nichtvollständig\")","v":"Nichtvollständig"},"Vermögensaufstellung"]
[null,null,null,null,null,null,null,null,null,null,null,null,null,{"$f":"Verbindlichkeiten!$N$5","v":"Nichtvollständig"},"Verbindlichkeiten"]
[null,null,null,null,null,null,null,null,null,null,null,null,null,{"$f":"N5","v":false},"Sonstiges"]
[null,null,null,null,null,null,null,null,null,null,null,null,null,{"$f":"IF(COUNTIF(N36:N40,\"Alles IO\")=5,\"Ready\",\"Flop\")","v":"Flop"}]